Cogmind - Beta 15 @@@ ROGUE MODE // 2025.06.27 @ 11:20:39 Player: EX-OCT Result: Destroyed by KN-7UR with KN-7UR's Autopenetrator Performance ------------- Evolutions (2) 1000 Regions Visited (5) 1000 Robots Destroyed (27) 135 Value Destroyed (686) 686 Prototype IDs (9) 180 Alien Tech Used (0) 0 Bonus (-117) -117 TOTAL SCORE: 2884 Bonus ------- Friendly Fire -117 Cogmind --------- Core Integrity 0/550 Matter 251/300 Energy 89/100 System Corruption 7% Temperature Cool (6) Movement Core (50) Location -8/Recycling Parts ------- > --- POWER (1) -------- (None) > --- PROPULSION (4) --- (None) > --- UTILITY (4) ------ Machine Analyzer Hacking Suite > --- WEAPON (2) ------- Chainsword > --- INVENTORY (5) ---- Authchip [Propulsion] Enhanced Autogun Enhanced Autogun Enhanced Autogun Peak State ------------ > --- POWER ------------ Heavy Ion Engine > --- PROPULSION ------- Gravmag System Gravmag System Gravmag System Gravmag System > --- UTILITY ---------- Machine Analyzer Advanced Targeting Computer Insulated Plating Hacking Suite > --- WEAPON ----------- Flak Gun Chainsword > --- INVENTORY -------- Hover Unit Insulated Plating Flak Gun Flak Gun Chainsword [Rating: 40] Favorites ----------- Power Nuclear Core Engine Heavy Ion Engine Power Core Nuclear Core Propulsion Gravmag System Treads Light Treads Hover Unit Gravmag System Flight Unit Improved Flight Unit Utility Hacking Suite Device Seismic Detector Processor Machine Analyzer Hackware Hacking Suite Protection Insulated Plating Weapon Chainsword Energy Gun EM Pulse Gun Energy Cannon Advanced Beam Cannon Ballistic Gun Flak Gun Ballistic Cannon Flak Cannon Special Weapon Mining Laser Slashing Weapon Chainsword Build | -11 -10 -9 -8 -8 -8 ------- Run | Yrd Mat Mat Mat Sto Rec Slots Evolved 4 | . . 2 2 . . Power . | . . . . . . Propulsion 2 | . . 1 1 . . Utility 2 | . . 1 1 . . Weapon . | . . . . . . Parts Attached 48 | 4 4 3 24 11 2 Power 5 | . 1 . 4 . . Engine 4 | . 1 . 3 . . Core 1 | . . . 1 . . Reactor . | . . . . . . Propulsion 18 | 2 1 . 8 7 . Treads 2 | 2 . . . . . Leg . | . . . . . . Wheel . | . . . . . . Hover 12 | . 1 . 8 3 . Flight 4 | . . . . 4 . Utility 9 | 1 1 . 5 1 1 Device 1 | 1 . . . . . Storage . | . . . . . . Processor 3 | . 1 . 2 . . Hackware 2 | . . . 1 . 1 Protection 3 | . . . 2 1 . Artifact . | . . . . . . Weapon 16 | 1 1 3 7 3 1 Energy Gun 5 | 1 . 2 2 . . Energy Cannon 1 | . . 1 . . . Ballistic Gun 5 | . . . 2 3 . Ballistic Cannon 1 | . . . 1 . . Launcher . | . . . . . . Special Weapon 1 | . 1 . . . . Impact Weapon . | . . . . . . Slashing Weapon 3 | . . . 2 . 1 Piercing Weapon . | . . . . . . Special Melee Weapon . | . . . . . . Unidentified Prototypes 7 | . . 2 2 3 . Parts Lost 13 | . . 4 2 . 7 Power 2 | . . . 1 . 1 Propulsion 6 | . . 1 1 . 4 Utility 3 | . . 1 . . 2 Weapon 2 | . . 2 . . . Highest Loss Streak 7 | . . 3 1 . 7 To Critical Strikes . | . . . . . . Average Backups 3 | 1 1 2 4 4 4 Power . | 1 1 1 . . . Propulsion . | . . . . . . Utility . | . . . . 1 1 Weapon 2 | . . 1 2 3 3 Tool/Special . | . . . . . . Unused Backups 4 | . . . 1 1 2 Power . | . . . . . . Propulsion . | . . . . . . Utility 1 | . . . . . 1 Weapon 3 | . . . 1 1 1 Tool/Special . | . . . . . . Average Slot Usage (%) 82 | . 64 40 85 98 91 Engine 4 | . 7 6 7 . . Core 3 | . . . . 9 7 Treads 1 | . 11 . . . . Hover 17 | . 7 5 31 11 . Flight 9 | . . . . 23 32 Device 3 | . 14 11 . . . Processor 13 | . 8 11 14 18 10 Hackware 7 | . . . 8 9 16 Protection 5 | . . . 6 9 6 Energy Gun 1 | . 8 3 . . . Ballistic Gun 6 | . . . 8 7 8 Ballistic Cannon 1 | . . . . 7 . Special Weapon 1 | . 5 3 . . . Slashing Weapon 4 | . . . 6 3 9 Peak Build Rating 40 | 4 6 8 40 38 37 Average Rating 25 | 2 4 3 33 35 33 On Entrance 14 | . 4 5 1 38 37 Naked Turns . | . . . . . . Heaviest Build 21 | 3 6 7 21 20 16 Greatest Support 36 | 3 6 6 36 34 20 Greatest Overweight (x) 3 | . . 1 . 3 1 Average Overweight (x) . | . . . . . . Largest Inventory Capacity 5 | 5 5 5 5 5 5 Average Capacity 5 | 5 5 5 5 5 5 Most Carried 5 | 2 2 3 5 5 5 Average Carried 3 | 1 1 2 4 4 4 Final Capacity 5 | 5 5 5 5 5 5 Final Carried 5 | 2 2 3 5 5 4 Class Distribution -------------------- 72% | Mutant 16% | Sprinter 8% | Hacker-Sprinter Dominant Class ---------------- Mutant | -10/Materials Mutant | -9/Materials Mutant | -8/Materials Sprinter | -8/Storage Hacker-Sprinter | -8/Recycling Resources | -11 -10 -9 -8 -8 -8 ----------- Run | Yrd Mat Mat Mat Sto Rec Matter Collected 1056 | 240 40 15 277 325 159 Remotely . | . . . . . . Salvage Created 936 | 120 146 60 340 200 70 Parts 58 | 7 9 3 21 16 2 Haulers Intercepted 3 | . 1 . 1 1 . Recyclers Shooed . | . . . . . . Parts Field Recycled . | . . . . . . Retrieved Matter . | . . . . . . Parts Self-Destructed . | . . . . . . Prevented . | . . . . . . Kills | -11 -10 -9 -8 -8 -8 ------- Run | Yrd Mat Mat Mat Sto Rec Combat Hostiles Destroyed 16 | . 2 1 8 4 1 Melee 3 | . . . 3 . . Guns 11 | . 2 1 5 2 1 Cannons 2 | . . . . 2 . Classes Destroyed 10 | 2 2 1 4 . 1 Tunneler 2 | 2 . . . . . Hauler 3 | . 1 . 1 1 . Recycler 1 | 1 . . . . . Mechanic 1 | . . . 1 . . Operator 2 | . . . 1 1 . Watcher 2 | . . . 1 1 . Swarmer 5 | . . . 3 2 . Grunt 8 | . 2 . 5 1 . Sentry 2 | . . 1 . 1 . Scrapper 1 | . . . . . 1 Best Kill Streak 6 | 2 2 1 6 4 1 Combat Bots Only 5 | . 2 1 5 3 1 Max Kills in Single Turn 1 | 1 1 1 1 1 1 Gunslinging . | . . . . . . Exploded . | . . . . . . Melee 1 | . . . 1 . . Uniques/NPCs Destroyed . | . . . . . . Combat | -11 -10 -9 -8 -8 -8 -------- Run | Yrd Mat Mat Mat Sto Rec Hostile Shots Fired 240 | . 12 49 73 8 98 Missed 74 | . 5 18 34 3 14 Hits 166 | . 7 31 39 5 84 Projectile 166 | . 7 31 39 5 84 Critical Strikes 1 | . . . 1 . . Damage Taken 2207 | . 83 383 636 154 951 Core 781 | . 48 179 99 16 439 Absorbed by Shields . | . . . . . . Ignored by Resistances 12 | . . . 12 . . Regen/Repaired (Parts) 22 | . . . . 22 . Core Remaining (%) 78 | 100 80 55 . . . Volleys Fired 71 | 3 17 8 17 13 13 Largest 2 | 1 1 1 2 2 1 Hottest 100 | 40 100 45 63 65 25 Shots Fired 96 | 3 17 8 31 24 13 Gun 81 | 3 14 8 31 12 13 Cannon 12 | . . . . 12 . Launcher . | . . . . . . Special 3 | . 3 . . . . Kinetic 65 | . . . 28 24 13 Thermal 6 | . 3 . 3 . . Explosive . | . . . . . . Electromagnetic 25 | 3 14 8 . . . Robot Hit Streak 14 | 3 6 14 10 13 8 Robot Miss Streak 9 | . 1 . 7 9 1 Penetration Max . | . . . . . . Secondary Targets 1 | . . . 1 . . Max Gunslinging Chain 1 | . . . 1 . . Shots Hit Robots 101 | 3 11 8 36 21 22 Core Hits 81 | 3 6 2 41 25 4 Critical Kills . | . . . . . . Critical Parts Destroyed . | . . . . . . Critical Strikes 1 | . . . . . 1 Sever 1 | . . . . . 1 Melee Attacks 40 | . . . 25 2 13 Impact . | . . . . . . Slashing 40 | . . . 25 2 13 Piercing . | . . . . . . Sneak Attacks 5 | . . . 3 1 1 Combat Hostiles 1 | . . . . . 1 Follow-up Attacks 2 | . . . . . 2 Damage Inflicted 2343 | 42 144 100 974 482 601 Guns 1216 | 42 144 95 535 187 213 Cannons 189 | . . . . 189 . Explosions . | . . . . . . Melee 933 | . . . 439 106 388 Ramming 5 | . . 5 . . . Kinetic 1089 | . . . 500 376 213 Thermal 35 | . . . 35 . . Explosive . | . . . . . . Electromagnetic 281 | 42 144 95 . . . Impact . | . . . . . . Slashing 933 | . . . 439 106 388 Piercing . | . . . . . . Highest Corruption 7 | . . 6 7 7 7 Average Corruption 6 | . . 3 6 7 7 Corruption Purged . | . . . . . . Corruption Blocked . | . . . . . . Effects 28 | . . 1 11 11 5 Message Errors 3 | . . . 2 . 1 Matter Fused 11 | . . 1 3 4 3 Heat Flow Errors 1 | . . . . 1 . Energy Discharges 5 | . . . 2 2 1 Parts Fused 1 | . . . 1 . . Data Loss (minor) 3 | . . . 1 2 . Data Loss (major) 2 | . . . 2 . . Weapon Failures 2 | . . . . 2 . Overload Shots . | . . . . . . Overflow Damage 85 | . . . 85 . . Projectiles . | . . . . . . Explosions . | . . . . . . Melee 85 | . . . 85 . . Knockbacks 7 | . . . . 7 . Impact . | . . . . . . Kinetic 7 | . . . . 7 . Secondary . | . . . . . . Self-Inflicted Damage 2 | . . 2 . . . Shots . | . . . . . . Rammed 1 | . . 1 . . . Targets Rammed 1 | . . 1 . . . Kicked . | . . . . . . Crushed . | . . . . . . Highest Temperature 300 | . 40 18 31 300 133 Average Temperature 81 | . 13 8 9 135 56 Received Heat Transfer 924 | . 45 99 225 27 528 Siege Activations . | . . . . . . Martial Activations . | . . . . . . Shielding Activations . | . . . . . . Robots Disrupted . | . . . . . . Combat Hostiles . | . . . . . . Robots Corrupted . | . . . . . . Combat Hostiles . | . . . . . . Parts Fried 4 | . 1 3 . . . Impact Corruptions . | . . . . . . Robots Melted . | . . . . . . Combat Hostiles . | . . . . . . Parts Melted 2 | . . . . . 2 Heat Transferred 74 | . . . 74 . . Parts Sabotaged . | . . . . . . Parts Stolen . | . . . . . . Parts Stripped . | . . . . . . Power Chain Reactions . | . . . . . . Alert | -11 -10 -9 -8 -8 -8 ------- Run | Yrd Mat Mat Mat Sto Rec Maximum Alert Level . | . . . . . . Low Security (%) 100 | 100 100 100 100 100 100 Level 1 . | . . . . . . Level 2 . | . . . . . . Level 3 . | . . . . . . Level 4 . | . . . . . . Level 5 . | . . . . . . High Security . | . . . . . . Max Security . | . . . . . . Peak Influence 188 | 5 66 30 188 164 116 Initial 72 | . . 23 . 72 52 Average 73 | 1 22 13 93 101 87 Influence Increases 900 | 15 125 34 418 184 124 Destroy 0b10 Robot/C 300 | . 40 20 160 80 . Destroy 0b10 Robot/NC 55 | 15 5 . 20 15 . Destroy Leader 50 | . 2 10 24 14 . Successful Hack 74 | . . 4 37 29 4 Select Force Hacks 90 | . . . . . 90 Destroy Structure 16 | . 3 . 12 1 . Partial Spotted 75 | . 15 . . 30 30 Lose Combat Pursuer 240 | . 60 . 165 15 . Influence Decreases 864 | 15 69 90 246 220 224 Entered New Map 217 | . . 33 . 100 84 Time Decay 530 | 15 69 40 216 120 70 Lost Part 107 | . . 17 20 . 70 Lost Ally 10 | . . . 10 . . Squads Dispatched 3 | . . . 2 1 . Investigation 1 | . . . 1 . . Extermination . | . . . . . . Reinforcement 2 | . . . 1 1 . Assault . | . . . . . . Garrison . | . . . . . . Intercept . | . . . . . . Searches Triggered . | . . . . . . Construction Impeded . | . . . . . . Haulers Reinforced . | . . . . . . Active Scanning Responses . | . . . . . . Cargo Convoy Interrupts . | . . . . . . Stealth | -11 -10 -9 -8 -8 -8 --------- Run | Yrd Mat Mat Mat Sto Rec Distress Signals 5 | . 1 . 3 1 . Communications Jammed . | . . . . . . Distress Signals . | . . . . . . Times Spotted 65 | . 8 9 28 14 6 Peak Tracking Total 9 | . 5 8 9 5 3 Tactical Retreats 9 | . 2 . 4 1 2 Traps | -11 -10 -9 -8 -8 -8 ------- Run | Yrd Mat Mat Mat Sto Rec Traps Triggered 1 | . . . 1 . . Indirectly . | . . . . . . Trap Hack Attempts . | . . . . . . Triggered . | . . . . . . Disarmed . | . . . . . . Reprogrammed . | . . . . . . Reused . | . . . . . . Traps Extracted . | . . . . . . Installed . | . . . . . . Triggered . | . . . . . . Machines | -11 -10 -9 -8 -8 -8 ---------- Run | Yrd Mat Mat Mat Sto Rec Machines Disabled . | . . . . . . Max in Single Turn . | . . . . . . Garrison Access 1 | . . . . 1 . Machines Repaired . | . . . . . . Machines Dismantled . | . . . . . . Machines Sabotaged . | . . . . . . Overloaded Fab Kills . | . . . . . . Hacking | -11 -10 -9 -8 -8 -8 --------- Run | Yrd Mat Mat Mat Sto Rec Machines Accessed 24 | . . 1 8 7 8 Terminals 15 | . . 1 5 4 5 Fabricators . | . . . . . . Repair Stations 2 | . . . 1 1 . Recycling Units 4 | . . . . 1 3 Scanalyzers 2 | . . . 2 . . Garrison Access 1 | . . . . 1 . Total Hacks 61 | . . 2 29 11 19 Successful 44 | . . 1 20 9 14 Failed 17 | . . 1 9 2 5 Catastrophic 2 | . . . . 2 . Database Lockouts . | . . . . . . Manual 40 | . . 2 18 2 18 Terminals 43 | . . 2 19 6 16 Fabricators . | . . . . . . Repair Stations 5 | . . . 3 2 . Recycling Units 5 | . . . . 2 3 Scanalyzers 7 | . . . 7 . . Garrison Access 1 | . . . . 1 . Terminal Hacks 7 | . . . 2 3 2 Open Door 3 | . . . . 3 . Terminal Index 2 | . . . 1 . 1 Zone Layout 2 | . . . 1 . 1 Fabricator Hacks . | . . . . . . Repair Station Hacks 3 | . . . 1 2 . Scan Component 2 | . . . 1 1 . Repair 1 | . . . . 1 . Recycling Unit Hacks 1 | . . . . 1 . Retrieve Matter 1 | . . . . 1 . Scanalyzer 7 | . . . 7 . . Insert Component 3 | . . . 3 . . Analyze 4 | . . . 4 . . Garrison Access Hacks 1 | . . . . 1 . Seal Access 1 | . . . . 1 . Unauthorized Hacks 25 | . . 1 10 2 12 Terminals 22 | . . 1 10 2 9 Track 2 | . . . . 1 1 Assimilate 1 | . . . 1 . . Botnet 8 | . . . 4 1 3 Skim 11 | . . 1 5 . 5 Fabricators . | . . . . . . Repair Stations . | . . . . . . Recycling Units 3 | . . . . . 3 Tunnel 3 | . . . . . 3 Scanalyzers . | . . . . . . Garrison Access . | . . . . . . Data Cores Recovered 1 | . . . 1 . . Used 1 | . . . 1 . . Hacking Detections 14 | . . 1 8 1 4 Full Trace Events 2 | . . . 2 . . Feedback Events 1 | . . . 1 . . Corruption 1 | . . . 1 . . Feedback Blocked . | . . . . . . Robot Schematics Acquired . | . . . . . . Robots Built . | . . . . . . Authchips . | . . . . . . Time . | . . . . . . Total Robot Build Rating . | . . . . . . Part Schematics Acquired 2 | . . . 2 . . Parts Built . | . . . . . . Authchips . | . . . . . . Time . | . . . . . . Total Part Build Rating . | . . . . . . Parts Repaired 1 | . . . . 1 . Time 25 | . . . . 25 . Parts Recycled . | . . . . . . Recycled Matter . | . . . . . . Retrieved Matter . | . . . . . . Retrieved Components . | . . . . . . Parts Scanalyzed 2 | . . . 2 . . Part Schematics Acquired 2 | . . . 2 . . Parts Damaged . | . . . . . . Bothacking | -11 -10 -9 -8 -8 -8 ------------ Run | Yrd Mat Mat Mat Sto Rec Used RIF Installer . | . . . . . . Robots Hacked . | . . . . . . Non-combat . | . . . . . . Combat . | . . . . . . Robot Hacks Applied . | . . . . . . Relay Couplers Released . | . . . . . . Fabnet Peak Effective % . | . . . . . . Robots Rewired . | . . . . . . Allies Hacked . | . . . . . . Hacks Repelled . | . . . . . . Allies | -11 -10 -9 -8 -8 -8 -------- Run | Yrd Mat Mat Mat Sto Rec Total Allies 1 | . . . 1 . . Largest Group 1 | . . . 1 . . Highest-Rated Group 10 | . . . 10 . . Highest-Rated Ally 10 | . . . 10 . . Total Orders . | . . . . . . Ally Attacks . | . . . . . . Total Damage . | . . . . . . Kills . | . . . . . . Allies Corrupted . | . . . . . . Allies Melted . | . . . . . . Intel | -11 -10 -9 -8 -8 -8 ------- Run | Yrd Mat Mat Mat Sto Rec Active Infowar (turns) 1001 | 3 176 91 331 253 147 Seismic 270 | 3 176 91 . . . Machine Analysis 731 | . . . 331 253 147 Robot Analysis Total . | . . . . . . Derelict Logs Recovered . | . . . . . . Drone Launches . | . . . . . . Drone Recoveries . | . . . . . . Exploration | -11 -10 -9 -8 -8 -8 ------------- Run | Yrd Mat Mat Mat Sto Rec Turns Passed 1237 | 64 176 94 503 253 147 Spaces Moved 1698 | 40 212 124 670 377 275 Core 237 | 40 80 78 38 . 1 Treads . | . . . . . . Legs . | . . . . . . Wheels . | . . . . . . Hover 918 | . 132 46 632 108 . Flight 543 | . . . . 269 274 Fastest Speed 29 | 50 50 50 45 29 29 Average Speed 43 | 50 56 56 47 34 29 Slowest Speed 250 | 50 60 120 60 250 105 Overloaded Moves . | . . . . . . Propulsion Burnouts . | . . . . . . Robots Hopped . | . . . . . . Potential Cave-ins . | . . . . . . Cave-ins Triggered . | . . . . . . Exploration Rate (%) 32 | 4 37 13 42 46 52 Regions Visited 5 Branch Regions 2 Pre-discovered Areas 5 | . . . 2 . 3 Known Exits Taken 3 | . 1 1 1 . . Unknown Exits Taken 2 | 1 . . . 1 . Scrap Searched . | . . . . . . Spaces Dug 16 | . 3 . 12 1 . Terrain Destroyed 16 | . 3 . 12 1 . Melee 13 | . . . 12 1 . Projectile 3 | . 3 . . . . AOE . | . . . . . . Terrain Rammed . | . . . . . . Walls Destroyed . | . . . . . . Machines Disabled . | . . . . . . Actions | -11 -10 -9 -8 -8 -8 --------- Run | Yrd Mat Mat Mat Sto Rec Total 2034 | 78 245 140 785 470 316 Wait 124 | 30 10 . 21 51 12 Move 1694 | 39 211 124 669 376 275 Hop . | . . . . . . Pick Up 14 | 2 . . 9 3 . Fast Attach 33 | 4 3 3 15 8 . Attach 8 | . 1 1 3 2 1 Detach 4 | . 1 2 1 . . Swap 16 | . . . 11 3 2 Drop 32 | . 2 2 14 12 2 Fire 71 | 3 17 8 17 13 13 Melee 38 | . . . 25 2 11 Ram . | . . . . . . Kick . | . . . . . . Crush . | . . . . . . Escape Stasis . | . . . . . . Rewire . | . . . . . . Trap . | . . . . . . Miscellaneous . | . . . . . . Route ------- -11/Scrapyard -10/Materials -9/Materials -8/Materials (discovered 3 exits: [*Fac x2] / *Sto) -8/Storage -8/Recycling (discovered 1 exit: Fac) History --------- Turn | Location | Event 5 | -11/Scrapyard | Discovered new exit (range 13) 65 | -11/Scrapyard | Entered Materials 208 | -10/Materials | Discovered new exit (range 15) 241 | -10/Materials | Identified exit to Materials 241 | -10/Materials | Entered another Materials area 241 | -9/Materials | Evolved 2 slots: Propulsion x1, Utility x1 323 | -9/Materials | Lost 3 parts (1n2w) 325 | -9/Materials | Build established: Mutant 328 | -9/Materials | Discovered new exit (range 15) 334 | -9/Materials | Identified exit to Materials 335 | -9/Materials | Entered another Materials area 335 | -8/Materials | Evolved 2 slots: Propulsion x1, Utility x1 337 | -8/Materials | Discovered new exit (range 10) 341 | -8/Materials | Identified exit to Storage 530 | -8/Materials | Discovered new exit (range 10) 679 | -8/Materials | Discovered new exit (range 15) 762 | -8/Materials | Learned location of Zion (-6) 838 | -8/Materials | Entered Storage 901 | -8/Storage | Met 01-MTF 1041 | -8/Storage | Repaired Imp. Flight Unit 1088 | -8/Storage | Discovered new exit (range 3) 1091 | -8/Storage | Entered Recycling 1091 | -8/Recycling | Accompanied by 1 ally (01-MTF) 1092 | -8/Recycling | Met a Zionite searching for Scraptown 1133 | -8/Recycling | Scanned before Scraplab entrance 1147 | -8/Recycling | Angered Scraplab inhabitants 1219 | -8/Recycling | Core integrity fell below 50% 1228 | -8/Recycling | Core integrity fell below 20% 1231 | -8/Recycling | Identified exit to Factory 1238 | -8/Recycling | Destroyed by KN-7UR with KN-7UR's Autopenetrator Last Messages --------------- 01233_ Penetrated by Thermabolt. 01233_ Thermabolt penetrates Wall. 01233_ Penetrated by Thermabolt. 01233_ Thermabolt penetrates Wall. 01235_ Penetrated by Thermabolt. 01235_ Thermabolt penetrates Wall. 01235_ Penetrated by Thermabolt. 01235_ Imp. VTOL Module destroyed. 01235_ Thermabolt penetrates Wall. 01235_ Penetrated by Thermabolt. 01235_ System Shield destroyed. 01235_ Thermabolt penetrates Wall. 01235_ Penetrated by Thermabolt. 01235_ Thermabolt penetrates Wall. 01235_ Penetrated by Thermabolt. 01235_ Thermabolt penetrates Wall. 01235_ Chainsword follow-up attack on KN-7UR. 01238_ Wall collapses. 01238_ Dropped Chainsword. 01238_ Penetrated by Thermabolt. Map ----- +----------------------------------------------------+ | ?????????# = [] [[ ! #????# #?????? | | ?????????# ! = #????####"####?????? | | ?????????# ! ! [ #???????# #???????## | | ?????????# * #???????# ######### | | ?????????#######+####+##???????# + | | ??????#???##### ### #???#####" #### | | ?????# #???# #??# | | ?????? ?####### ### #???# #??# | | ?????# ############?# ##### ##### | | ?????# ## #??# | | ?????# ## #??# | | ?????# ## #### """"" """"" | | ?????# ## + """"" """"" ##### | | ?????# ## # """"" """"" #???? | | ???### ## # #???? | | ???# ; + #???? | | ???# # ####### #####???? | | ???# # #?????# = #?????? | | ???# # #;r#####?##### ==#?????? | | ???# ####;#?????#"""# ==#?????? | | ???# ##??# #??###"Y"# r ###?????? | | ???# # #####;### #???????? | | ???# # ####???????? | | ???# # ####### r [#????????? | | ???# ## ##?????# / [[#????????? | | ???# ?# ####???# @rr [[#????????? | | ???# ##+##T##### h r ###????????? | | ???# # /r ???????? | | ???# # """ """ # ##;####"Y"########???????? | | ???# # "T" """ #r####???"""#??????????????? | | ???# # """ # #??????####??????????????? | | ???# # # #????????????????????????? | | ???# # # #????????????????????????? | | ???# + # "????????????????????????? | | ???# # # Y????????????????????????? | | ?###r########### "????????????????????????? | | ?#"" #???# #????????????????????????? | | ?#"Y #???? ?????????????????????????? | | ?#"" #???? ?????????????????????????? | | ?### #???? ?????????????????????????? | | ???# ####???? ???T?????????????????????? | | ???# #??????? ?????"""?????????????????? | | ???# #??????? ?????"""?????????????????? | | ???# #??????? ?????"""?????????????????? | | ???# #?????????????????????????????????? | | ???#+##+#?????????????"""?????????????????? | | ????? ????????????"""?????????????????? | | ??? ! ??????????"""?????????????????? | | ??# / ????????????????????????????? | | ??# * ! #??????????????????????????? | +----------------------------------------------------+ Best States ------------- Heat Dissipation 31 Energy Generation 14 Energy Capacity 280 Matter Stores 300 Matter Capacity 300 Sight Range 16 Terrain Scan Density 10 Armor Coverage 300 Resistance: EM 15 Evasion (%) 64 Targeting Accuracy 8 Offensive Hacking 10 Defensive Hacking 10 Authchip Count 1 Item Schematics ----------------- Gravmag System | -8/Materials | Scanalyzed Aerolev Unit | -8/Materials | Scanalyzed Robot Schematics ------------------ None Fabricated ------------ Nothing Repaired ---------- Imp. Flight Unit | 45% | -8/Storage Alien Tech Used ----------------- None Achievements -------------- None Challenges ------------ None Game ------ Seed DefenseFlightCore Manual? 0 Play Time 00:29:59 Cumulative 284.1 hours Start 2025.06.27 @ 10:51:30 End 2025.06.27 @ 11:20:39 Sessions 1 Manual Loads 0 Difficulty Rogue Special Mode None Game No. 142 Rogue 142 Adventurer 0 Explorer 0 Win Type - Total 17 Types 6/0/5/1/4/1/0/0/0/0 Lore% 84 Gallery% 73 Achievement% 70 Wizard Run 0 Options --------- Layout 1 ASCII 0 Keyboard 0 Movement Numpad Keybinds 0 Fullscreen 1 Font 24/Smallcaps Map View 50x35 Zoom Use 0% Tactical HUD 1 Map Filters NONE Filters NONE Steam 1 RUN: 454f1e9e-5bb6-4d7a-b1eb-c3fd26e8f6ee